[Event "Early-Titled-Tuesday-Blitz-January-30-2024"]
[Site "Chess.com"]
[Date "2024.01.30"]
[Round "2"]
[White "IwkooO"]
[Black "VincentKeymer"]
[Result "0-1"]
[WhiteElo "2642"]
[BlackElo "3072"]
[TimeControl "180+1"]
[EndTime "8:15:17 PST"]
[Termination "VincentKeymer won by resignation"]

1. e4 {[%clk 0:02:58]} 1... c6 {[%clk 0:03:00.1]} 2. Nc3 {[%clk 0:02:32.8]} 2...
d5 {[%clk 0:02:59.1]} 3. Nf3 {[%clk 0:02:33.4]} 3... dxe4 {[%clk 0:02:59.1]} 4.
Nxe4 {[%clk 0:02:34.3]} 4... Nf6 {[%clk 0:02:59.7]} 5. Nxf6+ {[%clk 0:02:34.2]}
5... exf6 {[%clk 0:03:00.6]} 6. d4 {[%clk 0:02:33.2]} 6... Bd6 {[%clk
0:03:00.4]} 7. Bd3 {[%clk 0:02:34]} 7... O-O {[%clk 0:03:00.9]} 8. O-O {[%clk
0:02:34.8]} 8... Re8 {[%clk 0:03:01.5]} 9. h3 {[%clk 0:02:32]} 9... Nd7 {[%clk
0:03:01.2]} 10. c3 {[%clk 0:02:32.3]} 10... Nf8 {[%clk 0:03:01.1]} 11. Re1
{[%clk 0:02:31.9]} 11... Be6 {[%clk 0:03:00.3]} 12. Qc2 {[%clk 0:02:31.1]} 12...
Qd7 {[%clk 0:02:58.8]} 13. Bd2 {[%clk 0:02:30.6]} 13... Ng6 {[%clk 0:02:53.2]}
14. Re2 {[%clk 0:02:26.9]} 14... Bxh3 {[%clk 0:02:14.3]} 15. gxh3 {[%clk
0:02:25.6]} 15... Qxh3 {[%clk 0:02:13.5]} 16. Rxe8+ {[%clk 0:02:24.6]} 16...
Rxe8 {[%clk 0:02:09.8]} 17. Bxg6 {[%clk 0:02:18.6]} 17... Qg4+ {[%clk 0:01:44]}
18. Kf1 {[%clk 0:02:11.7]} 18... Qxf3 {[%clk 0:01:40.9]} 19. Bxh7+ {[%clk
0:01:58.1]} 19... Kh8 {[%clk 0:01:40.7]} 20. Kg1 {[%clk 0:01:48.3]} 20... Qg4+
{[%clk 0:01:40]} 21. Kf1 {[%clk 0:01:48.6]} 21... Qh3+ {[%clk 0:01:39.8]} 22.
Kg1 {[%clk 0:01:49.4]} 22... Qh2+ {[%clk 0:01:37.8]} 0-1

[Event "Early-Titled-Tuesday-Blitz-January-30-2024"]
[Site "Chess.com"]
[Date "2024.01.30"]
[Round "2"]
[White "picturesquecheck"]
[Black "maximnovik"]
[Result "0-1"]
[WhiteElo "2357"]
[BlackElo "2587"]
[TimeControl "180+1"]
[EndTime "8:15:31 PST"]
[Termination "maximnovik won by resignation"]

1. e4 {[%clk 0:03:00.9]} 1... c6 {[%clk 0:02:59.5]} 2. d3 {[%clk 0:02:57.8]}
2... d5 {[%clk 0:03:00]} 3. Nd2 {[%clk 0:02:58.6]} 3... Nd7 {[%clk 0:02:59.1]}
4. g3 {[%clk 0:02:58.6]} 4... e5 {[%clk 0:02:59]} 5. Bg2 {[%clk 0:02:59.5]} 5...
dxe4 {[%clk 0:02:58.6]} 6. dxe4 {[%clk 0:02:59.2]} 6... Ngf6 {[%clk 0:02:59.1]}
7. Ne2 {[%clk 0:02:59.3]} 7... Bc5 {[%clk 0:02:58.7]} 8. O-O {[%clk 0:02:58.9]}
8... O-O {[%clk 0:02:58]} 9. Nb3 {[%clk 0:02:58.3]} 9... Bb6 {[%clk 0:02:54.3]}
10. c3 {[%clk 0:02:58.5]} 10... a5 {[%clk 0:02:51.2]} 11. a4 {[%clk 0:02:57.7]}
11... Qe7 {[%clk 0:02:50.6]} 12. Kh1 {[%clk 0:02:52.5]} 12... Rd8 {[%clk
0:02:47.3]} 13. Qc2 {[%clk 0:02:51]} 13... Nf8 {[%clk 0:02:46.7]} 14. c4 {[%clk
0:02:42.6]} 14... Ne6 {[%clk 0:02:45.8]} 15. Be3 {[%clk 0:02:37.8]} 15... Bxe3
{[%clk 0:02:42.3]} 16. fxe3 {[%clk 0:02:38.7]} 16... Nc5 {[%clk 0:02:42.3]} 17.
Nc3 {[%clk 0:02:23.1]} 17... Be6 {[%clk 0:02:40.2]} 18. Nd2 {[%clk 0:02:15.6]}
18... Ng4 {[%clk 0:02:29.6]} 19. Rae1 {[%clk 0:02:05.3]} 19... Qg5 {[%clk
0:02:28.4]} 20. Nf3 {[%clk 0:01:51.7]} 20... Qh6 {[%clk 0:02:28]} 21. b3 {[%clk
0:01:46.1]} 21... Nxe3 {[%clk 0:02:23.9]} 22. Qf2 {[%clk 0:01:37.7]} 22... Nxf1
{[%clk 0:02:21.4]} 23. Qxc5 {[%clk 0:01:37.6]} 23... Nxg3+ {[%clk 0:02:13.5]}
24. Kg1 {[%clk 0:01:37.1]} 24... Nh5 {[%clk 0:02:11.2]} 25. Qxe5 {[%clk
0:01:36.3]} 25... Nf4 {[%clk 0:02:10.8]} 26. Ng5 {[%clk 0:01:28.5]} 26... Nd3
{[%clk 0:02:01.9]} 0-1

[Event "Early-Titled-Tuesday-Blitz-January-30-2024"]
[Site "Chess.com"]
[Date "2024.01.30"]
[Round "2"]
[White "NelsonLinda"]
[Black "mitrabhaa"]
[Result "0-1"]
[WhiteElo "2590"]
[BlackElo "2907"]
[TimeControl "180+1"]
[EndTime "8:15:36 PST"]
[Termination "mitrabhaa won by resignation"]

1. b3 {[%clk 0:02:52.8]} 1... d5 {[%clk 0:02:59.7]} 2. Bb2 {[%clk 0:02:52.5]}
2... Bg4 {[%clk 0:02:59.8]} 3. f3 {[%clk 0:02:51.9]} 3... Bh5 {[%clk 0:03:00.1]}
4. h4 {[%clk 0:02:52.1]} 4... f6 {[%clk 0:02:59.7]} 5. d4 {[%clk 0:02:40.8]}
5... Nd7 {[%clk 0:02:57.4]} 6. g4 {[%clk 0:02:11.9]} 6... Bf7 {[%clk 0:02:56.9]}
7. e3 {[%clk 0:02:09.2]} 7... e5 {[%clk 0:02:52.2]} 8. Nd2 {[%clk 0:02:02.9]}
8... Bd6 {[%clk 0:02:49.2]} 9. Bd3 {[%clk 0:02:00.7]} 9... Ne7 {[%clk 0:02:48]}
10. Qe2 {[%clk 0:01:59.1]} 10... c5 {[%clk 0:02:46.7]} 11. O-O-O {[%clk
0:01:52.2]} 11... O-O {[%clk 0:02:45.7]} 12. Kb1 {[%clk 0:01:50.2]} 12... Qb6
{[%clk 0:02:43.4]} 13. c4 {[%clk 0:01:34.3]} 13... a5 {[%clk 0:02:39.4]} 14.
cxd5 {[%clk 0:01:10.5]} 14... Nxd5 {[%clk 0:02:35.9]} 15. Nc4 {[%clk 0:01:10.6]}
15... Qc7 {[%clk 0:02:36]} 16. g5 {[%clk 0:01:03.6]} 16... exd4 {[%clk 0:02:32]}
17. Nxd6 {[%clk 0:00:49.8]} 17... Qxd6 {[%clk 0:02:29.1]} 18. exd4 {[%clk
0:00:50.3]} 18... Nf4 {[%clk 0:02:27.2]} 19. Qd2 {[%clk 0:00:50.4]} 19... Nxd3
{[%clk 0:02:26.9]} 20. Qxd3 {[%clk 0:00:51.3]} 20... Bg6 {[%clk 0:02:26.6]} 0-1

[Event "Early-Titled-Tuesday-Blitz-January-30-2024"]
[Site "Chess.com"]
[Date "2024.01.30"]
[Round "2"]
[White "Pelopidass"]
[Black "AnkitGajwa"]
[Result "1-0"]
[WhiteElo "2555"]
[BlackElo "2341"]
[TimeControl "180+1"]
[EndTime "8:15:41 PST"]
[Termination "Pelopidass won by resignation"]

1. d4 {[%clk 0:02:53.8]} 1... Nf6 {[%clk 0:01:23.8]} 2. Nf3 {[%clk 0:02:53]}
2... g6 {[%clk 0:01:23.8]} 3. g3 {[%clk 0:02:53.4]} 3... Bg7 {[%clk 0:01:24.3]}
4. Bg2 {[%clk 0:02:54]} 4... O-O {[%clk 0:01:24.8]} 5. O-O {[%clk 0:02:54.6]}
5... d6 {[%clk 0:01:25.2]} 6. b3 {[%clk 0:02:54.9]} 6... Nbd7 {[%clk 0:01:25.8]}
7. Bb2 {[%clk 0:02:54.8]} 7... c5 {[%clk 0:01:26.7]} 8. c4 {[%clk 0:02:50.7]}
8... b6 {[%clk 0:01:25.9]} 9. dxc5 {[%clk 0:02:38.7]} 9... bxc5 {[%clk 0:01:22]}
10. Ne5 {[%clk 0:02:29.2]} 10... Nxe5 {[%clk 0:00:18.1]} 11. Bxa8 {[%clk
0:02:27.4]} 1-0

[Event "Early-Titled-Tuesday-Blitz-January-30-2024"]
[Site "Chess.com"]
[Date "2024.01.30"]
[Round "2"]
[White "mr65"]
[Black "LeoLV10"]
[Result "0-1"]
[WhiteElo "1887"]
[BlackElo "2443"]
[TimeControl "180+1"]
[EndTime "8:15:46 PST"]
[Termination "LeoLV10 won by resignation"]

1. e4 {[%clk 0:03:00.9]} 1... c6 {[%clk 0:02:59.2]} 2. d4 {[%clk 0:02:59.7]}
2... d5 {[%clk 0:03:00.1]} 3. e5 {[%clk 0:02:59.7]} 3... c5 {[%clk 0:02:59.7]}
4. dxc5 {[%clk 0:02:58.1]} 4... e6 {[%clk 0:03:00.2]} 5. Be3 {[%clk 0:02:53.2]}
5... Nd7 {[%clk 0:02:58.4]} 6. Nf3 {[%clk 0:02:52.6]} 6... Bxc5 {[%clk
0:02:57.6]} 7. Bxc5 {[%clk 0:02:49.1]} 7... Nxc5 {[%clk 0:02:58.5]} 8. Nbd2
{[%clk 0:02:46.5]} 8... Ne7 {[%clk 0:02:58.1]} 9. Nb3 {[%clk 0:02:40.9]} 9...
Nd7 {[%clk 0:02:47.2]} 10. Bd3 {[%clk 0:02:37.1]} 10... Qc7 {[%clk 0:02:43.4]}
11. O-O {[%clk 0:02:30.3]} 11... Nxe5 {[%clk 0:02:39.7]} 12. Nxe5 {[%clk
0:02:29.5]} 12... Qxe5 {[%clk 0:02:40.2]} 13. f4 {[%clk 0:02:27.2]} 13... Qd6
{[%clk 0:02:36.1]} 14. f5 {[%clk 0:02:25.7]} 14... exf5 {[%clk 0:02:26.1]} 15.
Nd4 {[%clk 0:02:21.1]} 15... g6 {[%clk 0:02:24.7]} 16. Kh1 {[%clk 0:02:19.6]}
16... O-O {[%clk 0:02:24.4]} 17. Qd2 {[%clk 0:02:14.9]} 17... Nc6 {[%clk
0:02:24]} 18. Nf3 {[%clk 0:02:13.3]} 18... Qf6 {[%clk 0:02:23]} 19. c3 {[%clk
0:02:11.3]} 19... Be6 {[%clk 0:02:22.8]} 20. Rad1 {[%clk 0:02:07.5]} 20... a6
{[%clk 0:02:22.2]} 21. Qh6 {[%clk 0:01:57.7]} 21... Qg7 {[%clk 0:02:22]} 22. Qh4
{[%clk 0:01:56.7]} 22... Ne5 {[%clk 0:02:16.1]} 23. Nxe5 {[%clk 0:01:51.9]}
23... Qxe5 {[%clk 0:02:15.4]} 24. Rde1 {[%clk 0:01:48.6]} 24... Qg7 {[%clk
0:02:11.6]} 25. Re3 {[%clk 0:01:44.8]} 25... Rad8 {[%clk 0:02:07.2]} 26. h3
{[%clk 0:01:42.3]} 26... d4 {[%clk 0:02:07.2]} 27. cxd4 {[%clk 0:01:41.5]} 27...
Rxd4 {[%clk 0:02:08.1]} 28. Qg3 {[%clk 0:01:36.2]} 28... Rfd8 {[%clk 0:02:06.4]}
29. Bb1 {[%clk 0:01:34.1]} 29... f4 {[%clk 0:01:59.2]} 30. Rxf4 {[%clk
0:01:32.4]} 30... Rxf4 {[%clk 0:01:57]} 31. Qxf4 {[%clk 0:01:31.9]} 31... Rd1+
{[%clk 0:01:55.1]} 0-1

[Event "Early-Titled-Tuesday-Blitz-January-30-2024"]
[Site "Chess.com"]
[Date "2024.01.30"]
[Round "2"]
[White "grunbergmihai"]
[Black "scarabee43"]
[Result "0-1"]
[WhiteElo "2558"]
[BlackElo "2819"]
[TimeControl "180+1"]
[EndTime "8:16:12 PST"]
[Termination "scarabee43 won by resignation"]

1. Nf3 {[%clk 0:03:00.9]} 1... d5 {[%clk 0:02:59.5]} 2. c4 {[%clk 0:03:01.1]}
2... e6 {[%clk 0:02:57.9]} 3. g3 {[%clk 0:03:01.2]} 3... Nf6 {[%clk 0:02:58.4]}
4. Bg2 {[%clk 0:03:01.3]} 4... Be7 {[%clk 0:02:58.5]} 5. O-O {[%clk 0:03:02.2]}
5... O-O {[%clk 0:02:58.7]} 6. d4 {[%clk 0:03:02.7]} 6... Nbd7 {[%clk
0:02:58.7]} 7. Qc2 {[%clk 0:03:02]} 7... b6 {[%clk 0:02:58.3]} 8. Rd1 {[%clk
0:02:57.4]} 8... Bb7 {[%clk 0:02:56.6]} 9. b3 {[%clk 0:02:57.1]} 9... Ne4 {[%clk
0:02:49.5]} 10. Nc3 {[%clk 0:02:55.7]} 10... f5 {[%clk 0:02:49.6]} 11. Ne5
{[%clk 0:02:51.2]} 11... Qe8 {[%clk 0:02:40.8]} 12. Bf4 {[%clk 0:02:47.5]} 12...
Nxe5 {[%clk 0:02:35.4]} 13. Bxe5 {[%clk 0:02:44.3]} 13... c6 {[%clk 0:02:34.7]}
14. cxd5 {[%clk 0:02:43.1]} 14... exd5 {[%clk 0:02:33.4]} 15. f3 {[%clk
0:02:38.1]} 15... Nf6 {[%clk 0:02:28]} 16. e4 {[%clk 0:02:37.3]} 16... fxe4
{[%clk 0:02:28.1]} 17. fxe4 {[%clk 0:02:36.7]} 17... dxe4 {[%clk 0:02:27.9]} 18.
Nxe4 {[%clk 0:02:36.2]} 18... Rd8 {[%clk 0:02:26.6]} 19. Ng5 {[%clk 0:02:30.1]}
19... Qh5 {[%clk 0:02:01.5]} 20. Ne6 {[%clk 0:02:18]} 20... Ng4 {[%clk
0:02:01.6]} 21. h3 {[%clk 0:02:07]} 21... Ne3 {[%clk 0:01:28.8]} 22. Qd3 {[%clk
0:02:04.8]} 22... Nxg2 {[%clk 0:01:20.8]} 23. Nxf8 {[%clk 0:02:03.8]} 23... Rxf8
{[%clk 0:01:18.9]} 24. Kxg2 {[%clk 0:01:58.9]} 24... c5+ {[%clk 0:01:18.9]} 25.
Kg1 {[%clk 0:01:53]} 25... cxd4 {[%clk 0:01:07.2]} 26. Rf1 {[%clk 0:01:46.5]}
26... Qxe5 {[%clk 0:01:06.5]} 0-1

[Event "Early-Titled-Tuesday-Blitz-January-30-2024"]
[Site "Chess.com"]
[Date "2024.01.30"]
[Round "2"]
[White "invisible_s0ul"]
[Black "RantomOpening"]
[Result "0-1"]
[WhiteElo "2245"]
[BlackElo "2518"]
[TimeControl "180+1"]
[EndTime "8:16:31 PST"]
[Termination "RantomOpening won by resignation"]

1. e4 {[%clk 0:03:00.9]} 1... c5 {[%clk 0:03:00]} 2. Nf3 {[%clk 0:02:57.3]} 2...
e6 {[%clk 0:03:00.3]} 3. c3 {[%clk 0:02:51.4]} 3... Nf6 {[%clk 0:02:58.3]} 4. e5
{[%clk 0:02:39.9]} 4... Nd5 {[%clk 0:02:58.1]} 5. d4 {[%clk 0:02:39.3]} 5...
cxd4 {[%clk 0:02:59]} 6. cxd4 {[%clk 0:02:39.8]} 6... d6 {[%clk 0:02:59.4]} 7.
Bc4 {[%clk 0:02:30.8]} 7... dxe5 {[%clk 0:02:59]} 8. dxe5 {[%clk 0:02:29.5]}
8... Be7 {[%clk 0:02:58.5]} 9. O-O {[%clk 0:02:28.9]} 9... O-O {[%clk
0:02:58.7]} 10. Bb3 {[%clk 0:02:13]} 10... b6 {[%clk 0:02:52.8]} 11. Re1 {[%clk
0:02:05.6]} 11... Bb7 {[%clk 0:02:52.5]} 12. Bd2 {[%clk 0:01:55.2]} 12... Na6
{[%clk 0:02:51.1]} 13. Qe2 {[%clk 0:01:47]} 13... Nc5 {[%clk 0:02:46.9]} 14. Bc2
{[%clk 0:01:46.3]} 14... Rc8 {[%clk 0:02:38.6]} 15. Nc3 {[%clk 0:01:26.8]} 15...
Ba6 {[%clk 0:02:31.6]} 16. Qd1 {[%clk 0:01:20.4]} 16... Nb4 {[%clk 0:02:22.7]}
17. Bb1 {[%clk 0:01:11]} 17... Nbd3 {[%clk 0:02:22.5]} 18. Qc2 {[%clk
0:00:54.6]} 18... g6 {[%clk 0:02:22.3]} 19. Rd1 {[%clk 0:00:52.4]} 19... Nb4
{[%clk 0:02:20.5]} 20. Qc1 {[%clk 0:00:46.2]} 20... Ncd3 {[%clk 0:02:20.4]} 21.
Bxd3 {[%clk 0:00:44.2]} 21... Nxd3 {[%clk 0:02:21.3]} 22. Qb1 {[%clk 0:00:42.7]}
22... Qc7 {[%clk 0:02:21.6]} 23. Be3 {[%clk 0:00:39.9]} 23... Rfd8 {[%clk
0:02:21.4]} 24. Ne4 {[%clk 0:00:34.8]} 24... Nxe5 {[%clk 0:02:21.2]} 25. Nxe5
{[%clk 0:00:22.5]} 25... Qxe5 {[%clk 0:02:22.1]} 26. h3 {[%clk 0:00:11.2]} 26...
Rxd1+ {[%clk 0:02:20.6]} 27. Qxd1 {[%clk 0:00:12.1]} 27... Qxe4 {[%clk 0:02:21]}
0-1

[Event "Early-Titled-Tuesday-Blitz-January-30-2024"]
[Site "Chess.com"]
[Date "2024.01.30"]
[Round "2"]
[White "MagnusCarlsen"]
[Black "Mikhail_Golubev"]
[Result "1-0"]
[WhiteElo "3295"]
[BlackElo "2680"]
[TimeControl "180+1"]
[EndTime "8:16:39 PST"]
[Termination "MagnusCarlsen won by resignation"]

1. c3 {[%clk 0:02:57.6]} 1... g6 {[%clk 0:02:56.2]} 2. e4 {[%clk 0:02:56.6]}
2... Bg7 {[%clk 0:02:54.6]} 3. d4 {[%clk 0:02:56.7]} 3... d6 {[%clk 0:02:53.5]}
4. Nf3 {[%clk 0:02:56.8]} 4... Nf6 {[%clk 0:02:53.2]} 5. Bd3 {[%clk 0:02:56.8]}
5... O-O {[%clk 0:02:53.2]} 6. O-O {[%clk 0:02:57.4]} 6... Nc6 {[%clk
0:02:52.2]} 7. d5 {[%clk 0:02:57.7]} 7... Nb8 {[%clk 0:02:51.6]} 8. h3 {[%clk
0:02:58.3]} 8... c6 {[%clk 0:02:50.2]} 9. c4 {[%clk 0:02:58.7]} 9... Na6 {[%clk
0:02:49.3]} 10. Nc3 {[%clk 0:02:58.6]} 10... Bd7 {[%clk 0:02:48.5]} 11. Re1
{[%clk 0:02:58.6]} 11... Nc7 {[%clk 0:02:38.6]} 12. Bf4 {[%clk 0:02:56.2]} 12...
cxd5 {[%clk 0:02:28.7]} 13. exd5 {[%clk 0:02:55.6]} 13... a6 {[%clk 0:02:28.7]}
14. Rc1 {[%clk 0:02:51.9]} 14... b5 {[%clk 0:02:26.2]} 15. b3 {[%clk 0:02:52.2]}
15... bxc4 {[%clk 0:02:08.5]} 16. bxc4 {[%clk 0:02:51.6]} 16... a5 {[%clk
0:02:04.9]} 17. Qd2 {[%clk 0:02:48.9]} 17... Na6 {[%clk 0:02:02.3]} 18. Re2
{[%clk 0:02:42.9]} 18... Nc5 {[%clk 0:02:01.6]} 19. Bc2 {[%clk 0:02:42.9]} 19...
Re8 {[%clk 0:01:59.9]} 20. Rce1 {[%clk 0:02:42.7]} 20... Rb8 {[%clk 0:01:54.4]}
21. Nd4 {[%clk 0:02:41.6]} 21... Rb4 {[%clk 0:01:50.6]} 22. Nc6 {[%clk
0:02:34.3]} 22... Bxc6 {[%clk 0:01:50.1]} 23. dxc6 {[%clk 0:02:35.2]} 23... Rxc4
{[%clk 0:01:47.4]} 24. Nb5 {[%clk 0:02:35.2]} 24... Ne6 {[%clk 0:01:27.2]} 25.
Rxe6 {[%clk 0:02:35]} 25... fxe6 {[%clk 0:01:26.6]} 26. Bb3 {[%clk 0:02:34.4]}
26... Rxc6 {[%clk 0:01:26]} 27. Nd4 {[%clk 0:02:34.3]} 27... Rb6 {[%clk
0:01:16.1]} 28. Nxe6 {[%clk 0:02:32.2]} 28... Qb8 {[%clk 0:00:17.9]} 29. Nxg7+
{[%clk 0:02:30.9]} 29... Rxb3 {[%clk 0:00:14.7]} 30. Nxe8 {[%clk 0:02:30.6]} 1-0

[Event "Early-Titled-Tuesday-Blitz-January-30-2024"]
[Site "Chess.com"]
[Date "2024.01.30"]
[Round "2"]
[White "topce"]
[Black "GatoRojo150"]
[Result "1-0"]
[WhiteElo "2379"]
[BlackElo "2578"]
[TimeControl "180+1"]
[EndTime "8:16:54 PST"]
[Termination "topce won by resignation"]

1. e4 {[%clk 0:03:00.9]} 1... e5 {[%clk 0:02:59.9]} 2. Nf3 {[%clk 0:03:00.4]}
2... Nc6 {[%clk 0:03:00.3]} 3. Nc3 {[%clk 0:02:59.4]} 3... Nf6 {[%clk
0:02:59.2]} 4. Bb5 {[%clk 0:02:59.1]} 4... Nd4 {[%clk 0:02:59.1]} 5. O-O {[%clk
0:02:58.1]} 5... c6 {[%clk 0:02:54]} 6. Bc4 {[%clk 0:02:43.9]} 6... d6 {[%clk
0:02:53.1]} 7. Nxd4 {[%clk 0:02:35]} 7... exd4 {[%clk 0:02:54]} 8. Ne2 {[%clk
0:02:34.7]} 8... Nxe4 {[%clk 0:02:54]} 9. Nxd4 {[%clk 0:02:33.5]} 9... d5 {[%clk
0:02:53.9]} 10. Bb3 {[%clk 0:02:31.5]} 10... Bc5 {[%clk 0:02:52.4]} 11. d3
{[%clk 0:02:24.7]} 11... Nf6 {[%clk 0:02:11.9]} 12. Be3 {[%clk 0:02:18.7]} 12...
Be7 {[%clk 0:02:01.4]} 13. c4 {[%clk 0:02:05.5]} 13... O-O {[%clk 0:02:00.3]}
14. h3 {[%clk 0:02:04.9]} 14... c5 {[%clk 0:01:57.7]} 15. Nf3 {[%clk 0:02:03.9]}
15... d4 {[%clk 0:01:56.8]} 16. Bf4 {[%clk 0:02:02.2]} 16... Nh5 {[%clk
0:01:52.1]} 17. Bh2 {[%clk 0:01:59.1]} 17... Bd6 {[%clk 0:01:52.3]} 18. Ba4
{[%clk 0:01:52.1]} 18... Bxh2+ {[%clk 0:01:49.6]} 19. Kxh2 {[%clk 0:01:53]}
19... Qd6+ {[%clk 0:01:47.3]} 20. g3 {[%clk 0:01:49.1]} 20... Qh6 {[%clk
0:01:43.1]} 21. Qd2 {[%clk 0:01:45.4]} 21... Qg6 {[%clk 0:01:35]} 22. Rae1
{[%clk 0:01:34.4]} 22... h6 {[%clk 0:01:32.7]} 23. Re5 {[%clk 0:01:30]} 23... b6
{[%clk 0:01:22.7]} 24. Nh4 {[%clk 0:01:24.3]} 24... Nxg3 {[%clk 0:01:02.1]} 25.
fxg3 {[%clk 0:01:20.1]} 25... Qd6 {[%clk 0:01:01]} 26. Qe2 {[%clk 0:01:14.2]}
26... Bb7 {[%clk 0:00:59.1]} 27. Nf5 {[%clk 0:01:13.9]} 27... Qf6 {[%clk
0:00:53.1]} 28. Ne7+ {[%clk 0:01:11.8]} 1-0

[Event "Early-Titled-Tuesday-Blitz-January-30-2024"]
[Site "Chess.com"]
[Date "2024.01.30"]
[Round "2"]
[White "Firouzja2003"]
[Black "Mackster23"]
[Result "1-0"]
[WhiteElo "3150"]
[BlackElo "2669"]
[TimeControl "180+1"]
[EndTime "8:17:01 PST"]
[Termination "Firouzja2003 won by resignation"]

1. d4 {[%clk 0:03:00.9]} 1... Nf6 {[%clk 0:02:59.8]} 2. Bg5 {[%clk 0:02:59.2]}
2... d5 {[%clk 0:02:59.5]} 3. e3 {[%clk 0:02:58.9]} 3... c5 {[%clk 0:02:58.9]}
4. Bxf6 {[%clk 0:02:59]} 4... gxf6 {[%clk 0:02:59]} 5. dxc5 {[%clk 0:02:59.1]}
5... e5 {[%clk 0:02:57.6]} 6. Nc3 {[%clk 0:02:56.5]} 6... Be6 {[%clk 0:02:49.3]}
7. Qh5 {[%clk 0:02:54.4]} 7... Bxc5 {[%clk 0:02:34.5]} 8. O-O-O {[%clk
0:02:53.6]} 8... Nc6 {[%clk 0:02:23.5]} 9. Bc4 {[%clk 0:02:50.3]} 9... Qa5
{[%clk 0:02:02.6]} 10. Bxd5 {[%clk 0:02:27.9]} 10... O-O-O {[%clk 0:01:58.5]}
11. Bxe6+ {[%clk 0:02:21.7]} 11... fxe6 {[%clk 0:01:58.1]} 12. Nge2 {[%clk
0:02:22.4]} 12... Rdg8 {[%clk 0:01:46.4]} 13. Qf7 {[%clk 0:02:19]} 13... Rxg2
{[%clk 0:01:21.2]} 14. Qxf6 {[%clk 0:02:11.7]} 14... Rf8 {[%clk 0:01:17.1]} 15.
Qxe6+ {[%clk 0:02:11.1]} 15... Kb8 {[%clk 0:01:17.7]} 16. Ne4 {[%clk 0:02:07.2]}
16... Rc8 {[%clk 0:00:50.5]} 17. N2c3 {[%clk 0:01:57.7]} 17... Rg6 {[%clk
0:00:43.9]} 18. Qd5 {[%clk 0:01:54.7]} 18... Nb4 {[%clk 0:00:41.7]} 19. Qxe5+
{[%clk 0:01:54.7]} 19... Ka8 {[%clk 0:00:41.8]} 20. Kb1 {[%clk 0:01:48.8]} 20...
Ra6 {[%clk 0:00:37.2]} 21. Qf5 {[%clk 0:01:39.1]} 21... Rac6 {[%clk 0:00:28.9]}
22. a3 {[%clk 0:01:35.2]} 22... Na6 {[%clk 0:00:21.2]} 23. Rd5 {[%clk
0:01:35.5]} 23... Qb6 {[%clk 0:00:20.4]} 24. Na4 {[%clk 0:01:35.5]} 24... Qb5
{[%clk 0:00:15.3]} 25. Naxc5 {[%clk 0:01:35.8]} 25... Nxc5 {[%clk 0:00:16.2]}
26. Nxc5 {[%clk 0:01:36.3]} 26... Rxc5 {[%clk 0:00:16.5]} 27. Qxc8+ {[%clk
0:01:36.9]} 1-0

[Event "Early-Titled-Tuesday-Blitz-January-30-2024"]
[Site "Chess.com"]
[Date "2024.01.30"]
[Round "2"]
[White "TimGrutter03"]
[Black "AlmasRakhmatullaev"]
[Result "0-1"]
[WhiteElo "2607"]
[BlackElo "2955"]
[TimeControl "180+1"]
[EndTime "8:17:01 PST"]
[Termination "AlmasRakhmatullaev won by resignation"]

1. e4 {[%clk 0:03:00.9]} 1... e5 {[%clk 0:02:57.4]} 2. Nf3 {[%clk 0:03:01]} 2...
Nf6 {[%clk 0:02:58]} 3. d4 {[%clk 0:02:57.4]} 3... Nxe4 {[%clk 0:02:58]} 4. dxe5
{[%clk 0:02:57.3]} 4... d5 {[%clk 0:02:57.7]} 5. exd6 {[%clk 0:02:52.4]} 5...
Bxd6 {[%clk 0:02:54.3]} 6. Bd3 {[%clk 0:02:52]} 6... Nc5 {[%clk 0:02:53.8]} 7.
Qe2+ {[%clk 0:02:44.8]} 7... Qe7 {[%clk 0:02:52.8]} 8. Qxe7+ {[%clk 0:02:44.1]}
8... Bxe7 {[%clk 0:02:52.3]} 9. Be2 {[%clk 0:02:41.8]} 9... Bf5 {[%clk
0:02:51.3]} 10. Nd4 {[%clk 0:02:38.5]} 10... Bg6 {[%clk 0:02:51.6]} 11. Be3
{[%clk 0:02:28.1]} 11... Nbd7 {[%clk 0:02:44.6]} 12. Nc3 {[%clk 0:02:24.8]}
12... O-O-O {[%clk 0:02:42]} 13. O-O-O {[%clk 0:02:24.6]} 13... Rhe8 {[%clk
0:02:41.1]} 14. Bf3 {[%clk 0:02:17.8]} 14... Ne5 {[%clk 0:02:34.7]} 15. Be2
{[%clk 0:02:12.6]} 15... Bf6 {[%clk 0:02:23.4]} 16. Ndb5 {[%clk 0:02:11.5]}
16... Na6 {[%clk 0:02:07.9]} 17. Nxa7+ {[%clk 0:02:06.4]} 17... Kb8 {[%clk
0:02:08]} 18. Bxa6 {[%clk 0:01:58.1]} 18... bxa6 {[%clk 0:02:08.3]} 19. f4
{[%clk 0:01:56.8]} 19... Rxd1+ {[%clk 0:02:06.7]} 20. Rxd1 {[%clk 0:01:53.4]}
20... Nc4 {[%clk 0:02:04.5]} 21. Bd4 {[%clk 0:01:35.9]} 21... Kb7 {[%clk
0:01:28.3]} 22. Bf2 {[%clk 0:00:51.2]} 22... Bxc3 {[%clk 0:01:24.7]} 23. bxc3
{[%clk 0:00:49.3]} 23... Re2 {[%clk 0:01:24.3]} 24. Rf1 {[%clk 0:00:45.1]} 24...
Rxc2+ {[%clk 0:01:23.1]} 25. Kd1 {[%clk 0:00:45.3]} 25... Nb2+ {[%clk 0:01:19]}
26. Ke1 {[%clk 0:00:45.4]} 26... Nd3+ {[%clk 0:01:18.8]} 0-1